fUST/lending_fUST_20250605
["ID","MTS","AMOUNT","RATE_DAILY","PERIOD"]
[364541198,1749133848161,-5000.0,0.00023503,2]
[364541199,1749133848170,-5000.0,0.00023503,2]
[364541200,1749133848179,-5000.0,0.00023503,2]
[364541201,1749133848188,-5000.0,0.00023503,2]
[364541202,1749133848197,-385.90355,0.00023503,7]
[364541203,1749133848207,-385.90355,0.00023503,7]
[364541204,1749133848217,-176.673754,0.0002351,7]
[364541205,1749133848226,-157.028082,0.0002351,7]
[364541206,1749133848236,-721.4,0.00023556,2]
[364541207,1749133848246,-307.22485111,0.00023561,2]
[364541208,1749133848255,-1049.9,0.00023561,2]
[364541209,1749133848265,-1462.38,0.00023561,2]
[364541210,1749133848276,-539.04,0.00023561,2]
[364541211,1749133848286,-605.45,0.00023561,2]
[364541212,1749133848295,-601.08,0.00023561,2]
[364541213,1749133848305,-310.84844404,0.00023561,2]
[364541214,1749133848315,-440.0,0.00023561,2]
[364541215,1749133848324,-1053.84,0.00023561,2]
[364541216,1749133848334,-1333.5,0.00023561,2]
[364541217,1749133848343,-1857.03,0.00023561,2]
[364541218,1749133848354,-475.93,0.00023561,2]
[364541219,1749133848364,-832.73,0.00023561,2]
[364541220,1749133848373,-440.0,0.00023561,2]
[364541221,1749133848384,-848.96,0.00023561,2]
[364541222,1749133848393,-523.21,0.00023561,2]
[364541223,1749133848403,-327.21,0.00023561,2]
[364541224,1749133848413,-231.28369723,0.00023565,2]
[364541225,1749133848422,-5861.03304966,0.000236,7]
[364541226,1749133848432,-5293.62266296,0.000236,5]
[364541227,1749133848442,-1591.29,0.000236,7]
[364541228,1749133848451,-2106.60002774,0.000236,10]
[364541229,1749133848461,-2400.0,0.00023616,2]
[364541230,1749133848472,-2000.0,0.00023616,2]
[364541231,1749133848482,-721.4,0.00023656,5]
[364541232,1749133848492,-4931.38413808,0.00023658,2]
[364541233,1749133848501,-2481.13890158,0.00023659,9]
[364541234,1749133848511,-163.595295,0.00023668,7]
[364541235,1749133848521,-270.291833,0.00023668,7]
[364541236,1749133848530,-270.291833,0.00023668,7]
[364541237,1749133848539,-211.38444,0.00023668,7]
[364541238,1749133848548,-211.38444,0.00023668,7]
[364541239,1749133848558,-151.0,0.000237,7]
[364541240,1749133848567,-500.0,0.00023748,2]
[364541241,1749133848577,-721.4,0.00023756,6]
[364541242,1749133848587,-1500.0,0.00023768,2]
[364541243,1749133848596,-500.0,0.00023776,2]
[364541244,1749133848605,-385.90355,0.00023792,7]
[364541245,1749133848615,-385.903548,0.00023792,7]
[364541246,1749133848624,-270.291833,0.00023792,7]
[364541247,1749133848633,-270.291833,0.00023792,7]
[364541248,1749133848642,-211.38444,0.00023792,7]
[364541249,1749133848651,-211.38444,0.00023792,7]
[364541250,1749133848660,-604.841226,0.00023792,7]
[364541251,1749133848670,-604.841226,0.00023792,7]
[364541252,1749133848679,-604.841226,0.00023792,7]
[364541253,1749133848688,-604.841226,0.00023792,7]
[364541254,1749133848697,-31321.00000001,0.00023792,7]
[364541255,1749133848707,-288708.6047315,0.00023792,7]
[364541256,1749133848717,-32818.59,0.000238,2]
[364541257,1749133848727,-117794.66690462,0.000238,2]
[364541258,1749133848736,-55308.14953234,0.000238,3]
[364541259,1749133848745,-248.105,0.000238,7]
[364541260,1749133848754,-248.105,0.000238,7]
[364541261,1749133848764,-160.0,0.000238,3]
[364541262,1749133848773,-86929.0,0.000238,7]
[364541263,1749133848782,-151.0,0.000238,7]
[364541264,1749133848792,-1938.526136,0.000238,7]
[364541265,1749133848801,-1938.526136,0.000238,7]
[364541266,1749133848810,-1938.526136,0.000238,7]
[364541267,1749133848820,-1938.52613008,0.000238,7]
[364541268,1749133848829,-579.521877,0.000238,7]
[364541269,1749133848838,-579.521875,0.000238,7]
[364541270,1749133848847,-175.95852,0.000238,7]
[364541271,1749133848856,-175.95851,0.000238,7]
[364541272,1749133848865,-270.291833,0.000238,7]
[364541273,1749133848874,-270.291841,0.000238,7]
[364541274,1749133848883,-211.38444,0.000238,7]
[364541275,1749133848892,-211.38444,0.000238,7]
[364541276,1749133848901,-315.01552021,0.000238,3]
[364541277,1749133848911,-604.841226,0.000238,7]
[364541278,1749133848925,-604.841217,0.000238,7]
[364541279,1749133848934,-229.48950782,0.000238,3]
[364541280,1749133848943,-208.8766376,0.00023807,7]
[364541281,1749133848953,-4931.38413808,0.0002383,2]
[364541282,1749133848963,-1049.9,0.00023835,2]
[364541283,1749133848973,-1462.38,0.00023835,2]
[364541284,1749133848982,-539.04,0.00023835,2]
[364541285,1749133848991,-605.45,0.00023835,2]
[364541286,1749133849002,-601.08,0.00023835,2]
[364541287,1749133849012,-582.33495317,0.00023835,2]
[364541288,1749133849021,-1053.84,0.00023835,2]
[364541289,1749133849030,-1333.5,0.00023835,2]
[364541290,1749133849039,-1857.03,0.00023835,2]
[364541291,1749133849048,-475.93,0.00023835,2]
[364541292,1749133849057,-832.73,0.00023835,2]
[364541293,1749133849066,-289.61834141,0.00023835,2]
[364541294,1749133849075,-848.96,0.00023835,2]
[364541295,1749133849085,-523.21,0.00023835,2]
[364541296,1749133849095,-500.0,0.00023838,2]
[364541297,1749133849104,-3102.34,0.00023844,2]
[364541298,1749133849114,-721.4,0.00023856,3]
[364541299,1749133849124,-2481.13890158,0.00023866,10]
[364541300,1749133849133,-500.0,0.00023894,2]
[364541301,1749133849143,-200.0,0.000239,2]
[364541302,1749133849152,-2659.21,0.00023956,8]
[364541303,1749133849161,-721.4,0.00023956,3]
[364541304,1749133849170,-800.0,0.00023987,2]
[364541305,1749133849180,-182.32,0.00024,2]
[364541306,1749133849189,-4572.0,0.00024,2]
[364541307,1749133849198,-4572.0,0.00024,2]
[364541308,1749133849208,-4572.0,0.00024,2]
[364541309,1749133849218,-4572.0,0.00024,2]
[364541310,1749133849228,-423.7637613,0.00024,7]
[364541311,1749133849237,-20000.0,0.00024,2]
[364541312,1749133849247,-1000.0,0.00024,24]
[364541313,1749133849256,-3679.95,0.00024,7]
[364541314,1749133849266,-176845.31,0.00024,7]
[364541315,1749133849275,-1000.0,0.00024,3]
[364541316,1749133849284,-315.01552021,0.00024,3]
[364541317,1749133849294,-229.48950782,0.00024,7]
[364541318,1749133849303,-229.48950782,0.00024,3]
[364541319,1749133849313,-160.0,0.00024,7]
[364541320,1749133849323,-160.0,0.00024,7]
[364541321,1749133849332,-160.0,0.00024,7]
[364541322,1749133849341,-423.7637613,0.00024,7]
[364541323,1749133849351,-4931.38413808,0.00024001,2]
[364541324,1749133849360,-504.14560111,0.00024017,2]
[364541325,1749133849369,-721.4,0.00024056,2]
[364541326,1749133849379,-2481.13890158,0.00024072,10]
[364541327,1749133849388,-1049.9,0.00024109,2]
[364541328,1749133849397,-1462.38,0.00024109,2]
[364541329,1749133849407,-539.04,0.00024109,2]
[364541330,1749133849416,-605.45,0.00024109,2]
[364541331,1749133849426,-601.08,0.00024109,2]
[364541332,1749133849436,-1053.84,0.00024109,2]
[364541333,1749133849445,-1333.5,0.00024109,2]
[364541334,1749133849455,-1857.03,0.00024109,2]
[364541335,1749133849467,-475.93,0.00024109,2]
[364541336,1749133849477,-832.73,0.00024109,2]
[364541337,1749133849486,-848.96,0.00024109,2]
[364541338,1749133849495,-523.21,0.00024109,2]
[364541339,1749133849504,-160.0,0.00024131,5]
[364541340,1749133849513,-721.4,0.00024156,4]
[364541341,1749133849522,-2120.85044175,0.00024164,2]
[364541342,1749133849531,-2500.0,0.00024164,2]
[364541343,1749133849540,-500.0,0.00024165,2]
[364541344,1749133849549,-184379.66637844,0.00024173,77]
[364541345,1749133849558,-4931.38413808,0.00024173,2]
[364541346,1749133849567,-2000.0,0.000242,2]
[364541347,1749133849576,-2000.0,0.000242,2]
[364541348,1749133849585,-2000.0,0.000242,2]
[364541349,1749133849594,-2000.0,0.000242,2]
[364541350,1749133849603,-1500.0,0.000242,2]
[364541351,1749133849611,-1500.0,0.000242,2]
[364541352,1749133849621,-1500.0,0.000242,2]
[364541353,1749133849630,-1500.0,0.000242,2]
[364541354,1749133849639,-1500.0,0.000242,2]
[364541355,1749133849648,-1500.0,0.000242,2]
[364541356,1749133849657,-1500.0,0.000242,2]
[364541357,1749133849666,-1500.0,0.000242,2]
[364541358,1749133849675,-1809.71,0.000242,2]
[364541359,1749133849684,-1500.0,0.000242,2]
[364541360,1749133849693,-1500.0,0.000242,2]
[364541361,1749133849704,-721.4,0.00024256,3]
[364541362,1749133849713,-250.17094647,0.00024273,2]
[364541363,1749133849724,-1017140.92124075,0.00024275,20]
[364541364,1749133849739,-140737.33975328,0.00024275,20]
[364541365,1749133849751,-270.48915297,0.00024275,20]
[364541366,1749133977409,10000.0,0.00025,120]
[364541368,1749134135730,445.4,0.000161,2]
[364541375,1749134735873,184.852209,0.00013699,2]
[364541380,1749134931068,2201.67938176,0.00024251,120]
[364541416,1749135037895,-539.76,0.00016563,2]
[364541417,1749135037905,-2480.243031,0.00017255,2]
[364541418,1749135037914,-189.04923,0.0001733,2]
[364541419,1749135037923,-252.6291512,0.00017335,2]
[364541420,1749135037932,-248.05710918,0.00017805,2]
[364541421,1749135037941,-1079.53,0.00018069,2]
[364541422,1749135037951,-192.95396277,0.00018256,2]
[364541423,1749135037961,-203.55,0.00018335,2]
[364541424,1749135037970,-300.0,0.00018343,2]
[364541425,1749135037979,-300.0,0.00018343,2]
[364541426,1749135037988,-300.0,0.00018343,2]
[364541427,1749135037998,-300.0,0.00018343,2]
[364541428,1749135038007,-300.0,0.00018343,2]
[364541429,1749135038017,-2597.43609273,0.00018344,2]
[364541430,1749135038028,-479.07022859,0.00018355,2]
[364541431,1749135038039,-440.0,0.00018356,2]
[364541432,1749135038050,-440.0,0.00018356,2]
[364541433,1749135038059,-440.0,0.00018356,2]
[364541434,1749135038068,-430.0,0.00018356,2]
[364541435,1749135038077,-440.0,0.00018356,2]
[364541436,1749135038087,-440.0,0.00018356,2]
[364541437,1749135038096,-434.83418502,0.00018356,2]
[364541438,1749135038107,-250.80896394,0.00018356,2]
[364541439,1749135038117,-440.0,0.00018356,2]
[364541440,1749135038126,-391.80521261,0.00018356,2]
[364541441,1749135038135,-408.97794139,0.00018356,2]
[364541442,1749135038144,-440.0,0.00018356,2]
[364541443,1749135038153,-440.0,0.00018356,2]
[364541444,1749135038162,-440.0,0.00018356,2]
[364541445,1749135038171,-440.0,0.00018356,2]
[364541446,1749135038180,-440.0,0.00018356,2]
[364541447,1749135038189,-440.0,0.00018356,2]
[364541448,1749135038200,-440.0,0.00018356,2]
[364541449,1749135038209,-440.0,0.00018356,2]
[364541450,1749135038218,-440.0,0.00018356,2]
[364541451,1749135038227,-440.0,0.00018356,2]
[364541452,1749135038236,-440.0,0.00018356,2]
[364541453,1749135038246,-440.0,0.00018356,2]
[364541454,1749135038255,-440.0,0.00018356,2]
[364541455,1749135038265,-440.0,0.00018356,2]
[364541456,1749135038274,-440.0,0.00018356,2]
[364541457,1749135038284,-440.0,0.00018356,2]
[364541458,1749135038294,-440.0,0.00018356,2]
[364541459,1749135038306,-477.69628272,0.00018356,2]
[364541460,1749135038317,-321.47079416,0.00018356,2]
[364541461,1749135038330,-440.0,0.00018356,2]
[364541462,1749135038341,-440.0,0.00018356,2]
[364541463,1749135038351,-440.0,0.00018356,2]
[364541464,1749135038362,-440.0,0.00018356,2]
[364541465,1749135038372,-440.0,0.00018356,2]
[364541466,1749135038383,-440.0,0.00018356,2]
[364541467,1749135038395,-440.0,0.00018356,2]
[364541468,1749135038405,-440.0,0.00018356,2]
[364541469,1749135038414,-440.0,0.00018356,2]
[364541470,1749135038423,-440.0,0.00018356,2]
[364541471,1749135038433,-440.0,0.00018356,2]
[364541472,1749135038443,-440.0,0.00018356,2]
[364541473,1749135038453,-440.0,0.00018356,2]
[364541474,1749135038463,-440.0,0.00018356,2]
[364541475,1749135038473,-440.0,0.00018356,2]
[364541476,1749135038484,-440.0,0.00018356,2]
[364541477,1749135038493,-440.0,0.00018356,2]
[364541478,1749135038503,-440.0,0.00018356,2]
[364541479,1749135038513,-440.0,0.00018356,2]
[364541480,1749135038523,-440.0,0.00018356,2]
[364541481,1749135038532,-440.0,0.00018356,2]
[364541482,1749135038542,-370.0,0.00018356,2]
[364541483,1749135038551,-440.0,0.00018356,2]
[364541484,1749135038561,-291.80307538,0.00018356,2]
[364541485,1749135038570,-440.0,0.00018356,2]
[364541486,1749135038580,-440.0,0.00018356,2]
[364541487,1749135038589,-440.0,0.00018356,2]
[364541488,1749135038599,-440.0,0.00018356,2]
[364541489,1749135038609,-440.0,0.00018356,2]
[364541490,1749135038618,-440.0,0.00018356,2]
[364541491,1749135038628,-430.0,0.00018356,2]
[364541492,1749135038639,-440.0,0.00018356,2]
[364541493,1749135038648,-440.0,0.00018356,2]
[364541494,1749135038657,-440.0,0.00018356,2]
[364541495,1749135038668,-263.80068983,0.00018356,2]
[364541496,1749135038677,-440.0,0.00018356,2]
[364541497,1749135038687,-440.0,0.00018356,2]
[364541498,1749135038697,-440.0,0.00018356,2]
[364541499,1749135038706,-440.0,0.00018356,2]
[364541500,1749135038715,-440.0,0.00018356,2]
[364541501,1749135038724,-440.0,0.00018356,2]
[364541502,1749135038733,-440.0,0.00018356,2]
[364541503,1749135038744,-440.0,0.00018356,2]
[364541504,1749135038756,-440.0,0.00018356,2]
[364541505,1749135038768,-440.0,0.00018356,2]
[364541506,1749135038781,-440.0,0.00018356,2]
[364541507,1749135038791,-440.0,0.00018356,2]
[364541508,1749135038800,-440.0,0.00018356,2]
[364541509,1749135038809,-440.0,0.00018356,2]
[364541510,1749135038818,-440.0,0.00018356,2]
[364541511,1749135038827,-440.0,0.00018356,2]
[364541512,1749135038837,-440.0,0.00018356,2]
[364541513,1749135038847,-440.0,0.00018356,2]
[364541514,1749135038856,-440.0,0.00018356,2]
[364541515,1749135038866,-440.0,0.00018356,2]
[364541516,1749135038876,-440.0,0.00018356,2]
[364541517,1749135038886,-440.0,0.00018356,2]
[364541518,1749135038896,-440.0,0.00018356,2]
[364541519,1749135038905,-440.0,0.00018356,2]
[364541520,1749135038914,-440.0,0.00018356,2]
[364541521,1749135038923,-440.0,0.00018356,2]
[364541522,1749135038932,-440.0,0.00018356,2]
[364541523,1749135038941,-440.0,0.00018356,2]
[364541524,1749135038952,-516.87,0.00018356,2]
[364541525,1749135038961,-440.0,0.00018356,2]
[364541526,1749135038971,-440.0,0.00018356,2]
[364541527,1749135038980,-440.0,0.00018356,2]
[364541528,1749135038989,-440.0,0.00018356,2]
[364541529,1749135038998,-440.0,0.00018356,2]
[364541530,1749135039007,-481.71,0.00018356,2]
[364541531,1749135039016,-440.0,0.00018356,2]
[364541532,1749135039025,-430.0,0.00018356,2]
[364541533,1749135039034,-440.0,0.00018356,2]
[364541534,1749135039043,-440.0,0.00018356,2]
[364541535,1749135039052,-440.0,0.00018356,2]
[364541536,1749135039061,-440.0,0.00018356,2]
[364541537,1749135039070,-440.0,0.00018356,2]
[364541538,1749135039080,-440.0,0.00018356,2]
[364541539,1749135039089,-440.0,0.00018356,2]
[364541540,1749135039098,-440.0,0.00018356,2]
[364541541,1749135039107,-440.0,0.00018356,2]
[364541542,1749135039116,-432.43086659,0.00018356,2]
[364541543,1749135039125,-440.0,0.00018356,2]
[364541544,1749135039134,-440.0,0.00018356,2]
[364541545,1749135039145,-440.0,0.00018356,2]
[364541546,1749135039154,-476.49,0.00018356,2]
[364541547,1749135039163,-440.0,0.0001863,2]
[364541548,1749135039173,-440.0,0.0001863,2]
[364541549,1749135039183,-440.0,0.0001863,2]
[364541550,1749135039192,-440.0,0.0001863,2]
[364541551,1749135039204,-440.0,0.0001863,2]
[364541552,1749135039213,-440.0,0.0001863,2]
[364541553,1749135039223,-430.0,0.0001863,2]
[364541554,1749135039232,-440.0,0.0001863,2]
[364541555,1749135039241,-440.0,0.0001863,2]
[364541556,1749135039251,-440.0,0.0001863,2]
[364541557,1749135039260,-440.0,0.0001863,2]
[364541558,1749135039270,-440.0,0.0001863,2]
[364541559,1749135039279,-440.0,0.0001863,2]
[364541560,1749135039289,-440.0,0.0001863,2]
[364541561,1749135039298,-440.0,0.0001863,2]
[364541562,1749135039307,-440.0,0.0001863,2]
[364541563,1749135039319,-440.0,0.0001863,2]
[364541564,1749135039329,-380.0,0.0001863,2]
[364541565,1749135039339,-440.0,0.0001863,2]
[364541566,1749135039348,-440.0,0.0001863,2]
[364541567,1749135039360,-440.0,0.0001863,2]
[364541568,1749135039370,-440.0,0.0001863,2]
[364541569,1749135039380,-408.08,0.0001863,2]
[364541570,1749135039389,-440.0,0.0001863,2]
[364541571,1749135039401,-440.0,0.0001863,2]
[364541572,1749135039411,-440.0,0.0001863,2]
[364541573,1749135039421,-440.0,0.0001863,2]
[364541574,1749135039431,-440.0,0.0001863,2]
[364541575,1749135039440,-533.31,0.0001863,2]
[364541576,1749135039451,-440.0,0.0001863,2]
[364541577,1749135039462,-440.0,0.0001863,2]
[364541578,1749135039472,-449.16,0.0001863,2]
[364541579,1749135039481,-440.0,0.0001863,2]
[364541580,1749135039492,-440.0,0.0001863,2]
[364541581,1749135039501,-370.0,0.0001863,2]
[364541582,1749135039511,-440.0,0.0001863,2]
[364541583,1749135039520,-440.0,0.0001863,2]
[364541584,1749135039530,-440.0,0.0001863,2]
[364541585,1749135039539,-440.0,0.0001863,2]
[364541586,1749135039548,-440.0,0.0001863,2]
[364541587,1749135039558,-381.22490982,0.0001863,2]
[364541588,1749135039567,-440.0,0.0001863,2]
[364541589,1749135039577,-440.0,0.0001863,2]
[364541590,1749135039586,-440.0,0.0001863,2]
[364541591,1749135039596,-440.0,0.0001863,2]
[364541592,1749135039606,-440.0,0.0001863,2]
[364541593,1749135039615,-440.0,0.0001863,2]
[364541594,1749135039626,-440.0,0.0001863,2]
[364541595,1749135039637,-440.0,0.0001863,2]
[364541596,1749135039647,-440.0,0.0001863,2]
[364541597,1749135039656,-440.0,0.0001863,2]
[364541598,1749135039665,-440.0,0.0001863,2]
[364541599,1749135039675,-516.87,0.0001863,2]
[364541600,1749135039685,-440.0,0.0001863,2]
[364541601,1749135039694,-440.0,0.0001863,2]
[364541602,1749135039703,-440.0,0.0001863,2]
[364541603,1749135039714,-440.0,0.0001863,2]
[364541604,1749135039723,-440.0,0.0001863,2]
[364541606,1749135039733,-440.0,0.0001863,2]
[364541608,1749135039742,-370.0,0.0001863,2]
[364541610,1749135039751,-440.0,0.0001863,2]
[364541612,1749135039760,-440.0,0.0001863,2]
[364541614,1749135039769,-440.0,0.0001863,2]
[364541616,1749135039779,-440.0,0.0001863,2]
[364541618,1749135039788,-440.0,0.0001863,2]
[364541620,1749135039797,-476.49,0.0001863,2]
[364541622,1749135039806,-203.55,0.00018883,2]
[364541623,1749135039817,-571.59982372,0.00018904,2]
[364541625,1749135039826,-564.96,0.00018904,2]
[364541627,1749135039835,-440.0,0.00018904,2]
[364541629,1749135039845,-440.0,0.00018904,2]
[364541631,1749135039855,-440.0,0.00018904,2]
[364541633,1749135039864,-440.0,0.00018904,2]
[364541635,1749135039874,-440.0,0.00018904,2]
[364541637,1749135039884,-440.0,0.00018904,2]
[364541639,1749135039893,-440.0,0.00018904,2]
[364541641,1749135039902,-440.0,0.00018904,2]
[364541643,1749135039911,-440.0,0.00018904,2]
[364541645,1749135039920,-180.88,0.00018904,2]
[364541647,1749135039930,-440.0,0.00018904,2]
[364541649,1749135039939,-440.0,0.00018904,2]
[364541651,1749135039950,-412.69275013,0.00018904,2]
[364541653,1749135039959,-440.0,0.00018904,2]
[364541655,1749135039969,-440.0,0.00018904,2]
[364541657,1749135039978,-440.0,0.00018904,2]
[364541660,1749135039988,-440.0,0.00018904,2]
[364541661,1749135039997,-440.0,0.00018904,2]
[364541663,1749135040007,-440.0,0.00018904,2]
[364541665,1749135040016,-567.27,0.00018904,2]
[364541668,1749135040025,-516.87,0.00018904,2]
[364541670,1749135040035,-440.0,0.00018904,2]
[364541671,1749135040045,-440.0,0.00018904,2]
[364541674,1749135040056,-440.0,0.00018904,2]
[364541676,1749135040066,-440.0,0.00018904,2]
[364541678,1749135040077,-440.0,0.00018904,2]
[364541680,1749135040091,-440.0,0.00018904,2]
[364541682,1749135040100,-340.0,0.00018904,2]
[364541684,1749135040109,-476.49,0.00018904,2]
[364541686,1749135040118,-192.95396274,0.00019098,2]
[364541688,1749135040130,-151.16,0.00019178,2]
[364541690,1749135040140,-166.63432384,0.00019178,2]
[364541692,1749135040151,-440.0,0.00019178,2]
[364541694,1749135040161,-440.0,0.00019178,2]
[364541696,1749135040171,-305.1,0.00019178,2]
[364541698,1749135040180,-440.0,0.00019178,2]
[364541700,1749135040191,-526.54,0.00019178,2]
[364541702,1749135040202,-440.0,0.00019178,2]
[364541704,1749135040211,-440.0,0.00019178,2]
[364541706,1749135040220,-440.0,0.00019178,2]
[364541708,1749135040230,-440.0,0.00019178,2]
[364541710,1749135040240,-440.0,0.00019178,2]
[364541712,1749135040249,-516.87,0.00019178,2]
[364541714,1749135040258,-440.0,0.00019178,2]
[364541716,1749135040268,-440.0,0.00019178,2]
[364541718,1749135040277,-440.0,0.00019178,2]
[364541720,1749135040287,-440.0,0.00019178,2]
[364541722,1749135040296,-476.49,0.00019178,2]
[364541724,1749135040306,-189.042415,0.00019178,2]
[364541739,1749135040443,-649.69476902,0.00019292,2]
[364541741,1749135040454,-151.0,0.00019315,2]
[364541743,1749135040463,-151.0,0.00019315,2]
[364541745,1749135040473,-500.0,0.00019324,2]
[364541747,1749135040483,-151.0,0.00019342,2]
[364541749,1749135040492,-151.0,0.00019342,2]
[364541751,1749135040501,-151.0,0.0001937,2]
[364541753,1749135040511,-198.0,0.0001937,2]
[364541755,1749135040520,-166.17845751,0.00019397,2]
[364541757,1749135040530,-440.0,0.00019452,2]
[364541759,1749135040540,-440.0,0.00019452,2]
[364541761,1749135040550,-468.6917293,0.00019452,2]
[364541763,1749135040559,-440.0,0.00019452,2]
[364541765,1749135040569,-440.0,0.00019452,2]
[364541767,1749135040578,-440.0,0.00019452,2]
[364541769,1749135040587,-440.0,0.00019452,2]
[364541772,1749135040599,-516.87,0.00019452,2]
[364541774,1749135040608,-440.0,0.00019452,2]
[364541775,1749135040618,-440.0,0.00019452,2]
[364541778,1749135040627,-440.0,0.00019452,2]
[364541780,1749135040636,-440.0,0.00019452,2]
[364541782,1749135040646,-476.49,0.00019452,2]
[364541784,1749135040655,-207.4,0.00019458,2]
[364541786,1749135040665,-500.0,0.00019458,2]
[364541788,1749135040674,-500.0,0.00019458,2]
[364541789,1749135040683,-500.0,0.00019458,2]
[364541791,1749135040692,-500.0,0.00019458,2]
[364541794,1749135040703,-500.0,0.00019458,2]
[364541795,1749135040713,-500.0,0.00019458,2]
[364541797,1749135040722,-3619.66013542,0.00019458,2]
[364541799,1749135040731,-446.58537457,0.00019548,2]
[364541802,1749135040741,-1619.29,0.00019575,2]
[364541804,1749135040750,-440.0,0.00019726,2]
[364541806,1749135040760,-440.0,0.00019726,2]
[364541808,1749135040769,-440.0,0.00019726,2]
[364541810,1749135040778,-484.47950076,0.00019726,2]
[364541812,1749135040787,-440.0,0.00019726,2]
[364541814,1749135040797,-440.0,0.00019726,2]
[364541816,1749135040806,-516.87,0.00019726,2]
[364541818,1749135040816,-467.122,0.00019726,2]
[364541820,1749135040826,-440.0,0.00019726,2]
[364541822,1749135040836,-440.0,0.00019726,2]
[364541824,1749135040846,-440.0,0.00019726,2]
[364541826,1749135040855,-476.49,0.00019726,2]
[364541828,1749135040864,-160.0,0.00019826,2]
[364541830,1749135040874,-229.48950782,0.00019826,2]
[364541832,1749135040883,-212.94059491,0.00019826,2]
[364541834,1749135040892,-842.5625,0.00019826,2]
[364541836,1749135040902,-160.0,0.00019826,2]
[364541838,1749135040911,-160.0,0.00019826,2]
[364541840,1749135040921,-160.0,0.00019826,2]
[364541842,1749135040930,-423.7637613,0.00019826,2]
[364541844,1749135040942,-160.0,0.00019826,2]
[364541846,1749135040954,-758.9348566,0.00019872,2]
[364541848,1749135040964,-472.117,0.00019885,2]
[364541849,1749135040973,-667.41200581,0.000199,2]
[364541851,1749135040983,-192.95396274,0.0001994,2]
[364541853,1749135040992,-440.0,0.0002,2]
[364541855,1749135041001,-440.0,0.0002,2]
[364541857,1749135041010,-440.0,0.0002,2]
[364541859,1749135041020,-440.0,0.0002,2]
[364541861,1749135041029,-440.0,0.0002,2]
[364541863,1749135041038,-516.87,0.0002,2]
[364541865,1749135041047,-440.0,0.0002,2]
[364541867,1749135041056,-440.0,0.0002,2]
[364541869,1749135041065,-440.0,0.0002,2]
[364541871,1749135041074,-476.49,0.0002,2]
[364541874,1749135041083,-420.0,0.00020007,2]
[364541876,1749135041092,-300.0,0.00020007,2]
[364541878,1749135041103,-667.41200578,0.00020072,2]
[364541880,1749135041112,-184.852209,0.00020187,2]
[364541881,1749135041121,-667.41200578,0.00020245,2]
[364541883,1749135041130,-440.0,0.00020273,2]
[364541886,1749135041140,-440.0,0.00020273,2]
[364541887,1749135041149,-440.0,0.00020273,2]
[364541889,1749135041159,-440.0,0.00020273,2]
[364541891,1749135041168,-440.0,0.00020273,2]
[364541893,1749135041177,-516.87,0.00020273,2]
[364541896,1749135041187,-440.0,0.00020273,2]